[Event "106th British-ch 2019"]
[Site "Torquay"]
[Date "2019.08.03"]
[Round "8.8"]
[White "Houska, Jovanka"]
[Black "Rudd, Jack"]
[Result "1-0"]
[ECO "A46"]
[WhiteElo "2422"]
[BlackElo "2275"]
[Annotator "NA"]
[PlyCount "87"]
[EventDate "2019.07.27"]
[EventType "swiss"]
[EventCountry "GBR"]
[SourceTitle "playchess.com"]
[Source "ChessBase"]
[SourceQuality "1"]
[TimeControl "40/5400+30:1800+30"]

1. d4 {[%emt 0:00:15]} Nf6 {[%emt 0:00:00]} 2. Nf3 {[%emt 0:00:18]} e6 {[%emt 0:00:00]} 3. Bf4 {[%emt 0:01:31]} c5 {[%emt 0:00:40]} 4. e3 {[%emt 0:00:05]} Qb6 {[%emt 0:00:40]} 5. Qc1 {[%emt 0:03:19]} Nh5 {[%emt 0:02:09]} 6. Bg3 {[%emt 0:02:09]} Nxg3 {[%emt 0:01:37]} 7. hxg3 {[%emt 0:00:04]} cxd4 {[%emt 0:00:47]} 8. exd4 {[%emt 0:00:04]} Nc6 {[%emt 0:00:08]} 9. c3 {[%emt 0:00:06]} g6 {[%emt 0:00:16]} 10. Nbd2 {[%emt 0:01:07]} Bg7 {[%emt 0:01:48]} 11. Bd3 {[%emt 0:00:19]} Qc7 {[%emt 0:00:49]} 12. Qc2 {[%emt 0:01:46]} b6 {[%emt 0:01:49]} 13. O-O-O {[%emt 0:05:56]} Bb7 {[%emt 0:00:20]} 14. Kb1 {[%emt 0:14:59]} O-O-O {[%emt 0:00:16]} 15. Ng5 {[%emt 0:01:52]} d6 {[%emt 0:01:54]} 16. Nxh7 {[%emt 0:02:32]} e5 {[%emt 0:01:39]} 17. d5 {[%emt 0:01:12]} Nb8 {[%emt 0:00:40]} 18. c4 {[%emt 0:10:11]} Qe7 {[%emt 0:01:46]} 19. g4 {[%emt 0:11:15]} Na6 {[%emt 0:02:28]} 20. g5 {[%emt 0:01:01]} Nb4 {[%emt 0:01:59]} 21. Qb3 {[%emt 0:00:05]} Nxd3 {[%emt 0:00:12]} 22. Qxd3 {[%emt 0:00:03]} Kb8 {[%emt 0:00:12]} 23. Ne4 {[%emt 0:00:23]} Bc8 {[%emt 0:01:34]} 24. f3 {[%emt 0:01:23]} Bf5 {[%emt 0:01:32]} 25. g4 {[%emt 0:02:09]} Bxe4 {[%emt 0:02:19]} 26. fxe4 {[%emt 0:00:15]} Rc8 {[%emt 0:01:09]} 27. b3 {[%emt 0:06:46]} Rc7 {[%emt 0:00:48]} 28. Rdf1 {[%emt 0:00:23]} Rhc8 {[%emt 0:00:18]} 29. Rh3 {[%emt 0:05:57]} Qd7 {[%emt 0:00:47]} 30. Rhf3 {[%emt 0:03:10]} Rh8 {[%emt 0:01:46]} 31. Nf6 {[%emt 0:02:15]} Bxf6 {[%emt 0:00:16]} 32. Rxf6 {[%emt 0:00:27]} Qxg4 {[%emt 0:00:10]} 33. Rxd6 {[%emt 0:03:00]} Qxg5 {[%emt 0:02:37]} 34. Rdf6 {[%emt 0:05:16]} Rh2 {[%emt 0:01:11]} 35. R6f2 {[%emt 0:03:22]} Rxf2 {[%emt 0:02:25]} 36. Rxf2 {[%emt 0:00:03]} f6 {[%emt 0:00:15]} 37. Kb2 {[%emt 0:00:26]} Rh7 {[%emt 0:01:16]} 38. d6 {[%emt 0:02:25]} Rd7 {[%emt 0:00:43]} 39. Qd5 {[%emt 0:01:17]} Qh4 {[%emt 0:01:58]} 40. Rd2 {[%emt 0:05:03]} Qf4 {[%emt 0:01:04]} 41. b4 {[%emt 0:33:14]} f5 {[%emt 0:30:44]} 42. c5 {[%emt 0:02:10]} bxc5 {[%emt 0:00:21]} 43. bxc5 {[%emt 0:00:05]} Rb7+ {[%emt 0:00:08]} 44. Kc2 {[%emt 0:00:12]} 1-0

[Event "106th British-ch 2019"]
[Site "Torquay"]
[Date "2019.08.03"]
[Round "8.9"]
[White "Storey, Charles H"]
[Black "Lane, Gary W"]
[Result "1-0"]
[ECO "A26"]
[WhiteElo "2261"]
[BlackElo "2364"]
[Annotator "ChessBase"]
[PlyCount "133"]
[EventDate "2019.07.27"]
[EventType "swiss"]
[EventCountry "GBR"]
[SourceTitle "playchess.com"]
[Source "ChessBase"]
[SourceQuality "1"]
[TimeControl "40/5400+30:1800+30"]

1. c4 {[%emt 0:00:00]} e5 {[%emt 0:00:00]} 2. g3 {[%emt 0:00:00]} Nc6 {[%emt 0:00:21]} 3. Bg2 {[%emt 0:00:00]} g6 {[%emt 0:00:06]} 4. e4 {[%emt 0:05:31]} Bg7 {[%emt 0:01:29]} 5. Ne2 {[%emt 0:00:00]} d6 {[%emt 0:01:00]} 6. Nbc3 {[%emt 0:00:00]} f5 {[%emt 0:01:13]} 7. d3 {[%emt 0:00:12]} Nf6 {[%emt 0:00:24]} 8. Bg5 {[%emt 0:00:30]} h6 {[%emt 0:01:55]} 9. Bxf6 {[%emt 0:00:25]} Bxf6 {[%emt 0:03:34]} 10. exf5 {[%emt 0:00:17]} gxf5 {[%emt 0:03:40]} 11. Nd5 {[%emt 0:04:13]} Bg7 {[%emt 0:01:25]} 12. Qb3 {[%emt 0:07:15]} O-O {[%emt 0:04:48]} 13. f4 {[%emt 0:03:10]} Rb8 {[%emt 0:02:26]} 14. O-O {[%emt 0:01:25]} Be6 {[%emt 0:01:56]} 15. Rae1 {[%emt 0:01:03]} Qd7 {[%emt 0:01:00]} 16. fxe5 {[%emt 0:01:10]} dxe5 {[%emt 0:02:16]} 17. Kh1 {[%emt 0:02:48]} b5 {[%emt 0:12:11]} 18. Qc2 {[%emt 0:07:51]} bxc4 {[%emt 0:12:45]} 19. dxc4 {[%emt 0:01:39]} e4 {[%emt 0:02:31]} 20. b3 {[%emt 0:05:47]} Bxd5 {[%emt 0:04:22]} 21. cxd5 {[%emt 0:00:21]} Nb4 {[%emt 0:01:36]} 22. Qc4 {[%emt 0:01:18]} Qxd5 {[%emt 0:01:19]} 23. Qxc7 {[%emt 0:00:16]} Rb7 {[%emt 0:14:58]} 24. Qc4 {[%emt 0:02:44]} Qxc4 {[%emt 0:00:27]} 25. bxc4 {[%emt 0:00:03]} Rc7 {[%emt 0:00:31]} 26. Nf4 {[%emt 0:03:42]} Rxc4 {[%emt 0:09:11]} 27. Ng6 {[%emt 0:02:14]} Rf7 {[%emt 0:01:26]} 28. Rxf5 {[%emt 0:01:05]} Nd3 {[%emt 0:02:29]} 29. Ref1 {[%emt 0:05:46]} Rfc7 {[%emt 0:04:35]} 30. Nf4 {[%emt 0:11:04]} Rc1 {[%emt 0:00:14]} 31. Nxd3 {[%emt 0:14:00]} exd3 {[%emt 0:00:41]} 32. Rd5 {[%emt 0:03:37]} Rxf1+ {[%emt 0:01:43]} 33. Bxf1 {[%emt 0:00:16]} Rc1 {[%emt 0:00:03]} 34. Kg1 {[%emt 0:05:36]} Bf8 {[%emt 0:00:05]} 35. Rxd3 {[%emt 0:00:33]} Bc5+ {[%emt 0:00:05]} 36. Kg2 {[%emt 0:00:07]} Rc2+ {[%emt 0:00:04]} 37. Kh3 {[%emt 0:00:06]} Rxa2 {[%emt 0:00:07]} 38. Rd7 {[%emt 0:05:17]} Rf2 {[%emt 0:03:39]} 39. Bc4+ {[%emt 0:00:11]} Kf8 {[%emt 0:00:05]} 40. Rd5 {[%emt 0:05:37]} Bb6 {[%emt 0:00:59]} 41. Rh5 {[%emt 0:32:42]} Kg7 {[%emt 0:31:49]} 42. Kg4 {[%emt 0:00:00]} Rd2 {[%emt 0:00:00]} 43. Bd5 {[%emt 0:00:00]} a5 {[%emt 0:00:00]} 44. h4 {[%emt 0:00:00]} a4 {[%emt 0:00:00]} 45. Rf5 {[%emt 0:00:00]} Rf2 {[%emt 0:00:00]} 46. Re5 {[%emt 0:00:00]} Bd8 {[%emt 0:00:00]} 47. Re8 {[%emt 0:00:00]} Rf8 {[%emt 0:00:00]} 48. Re4 {[%emt 0:00:00]} a3 {[%emt 0:00:00]} 49. Re3 {[%emt 0:00:00]} h5+ {[%emt 0:00:00]} 50. Kh3 {[%emt 0:00:00]} Rf5 {[%emt 0:00:00]} 51. Ba2 {[%emt 0:00:00]} Ra5 {[%emt 0:00:00]} 52. Rd3 {[%emt 0:00:00]} Be7 {[%emt 0:00:09]} 53. Re3 {[%emt 0:00:00]} Bf6 {[%emt 0:01:21]} 54. Rd3 {[%emt 0:00:00]} Be7 {[%emt 0:00:44]} 55. Rf3 {[%emt 0:00:00]} Bf6 {[%emt 0:00:47]} 56. Kg2 {[%emt 0:00:00]} Ra7 {[%emt 0:01:15]} 57. Rd3 {[%emt 0:00:00]} Be7 {[%emt 0:00:37]} 58. Rf3 {[%emt 0:01:17]} Bd6 {[%emt 0:02:16]} 59. Rd3 {[%emt 0:01:18]} Be7 {[%emt 0:00:58]} 60. Kh3 {[%emt 0:00:57]} Rb7 {[%emt 0:00:21]} 61. Re3 {[%emt 0:00:15]} Bf8 {[%emt 0:01:21]} 62. Re5 {[%emt 0:02:04]} Rb2 {[%emt 0:00:14]} 63. Bc4 {[%emt 0:01:17]} Rb4 {[%emt 0:01:15]} 64. Rg5+ {[%emt 0:01:34]} Kh6 {[%emt 0:01:57]} 65. Bf7 {[%emt 0:01:35]} Bd6 {[%emt 0:00:52]} 66. Rg6+ {[%emt 0:00:19]} Kh7 {[%emt 0:00:10]} 67. Rxd6 {[%emt 0:00:06]} 1-0

[Event "106th British-ch 2019"]
[Site "Torquay"]
[Date "2019.08.03"]
[Round "8.10"]
[White "Willow, Jonah B"]
[Black "Pein, Malcolm"]
[Result "1/2-1/2"]
[ECO "B09"]
[WhiteElo "2343"]
[BlackElo "2312"]
[Annotator "ChessBase"]
[PlyCount "151"]
[EventDate "2019.07.27"]
[EventType "swiss"]
[EventCountry "GBR"]
[SourceTitle "playchess.com"]
[Source "ChessBase"]
[SourceQuality "1"]
[TimeControl "40/5400+30:1800+30"]

1. e4 {[%emt 0:00:00]} d6 {[%emt 0:00:00]} 2. d4 {[%emt 0:00:00]} Nf6 {[%emt 0:00:00]} 3. Nc3 {[%emt 0:00:00]} g6 {[%emt 0:00:00]} 4. f4 {[%emt 0:00:00]} Bg7 {[%emt 0:00:10]} 5. Nf3 {[%emt 0:00:00]} O-O {[%emt 0:00:24]} 6. Bd3 {[%emt 0:00:06]} Nc6 {[%emt 0:01:36]} 7. e5 {[%emt 0:00:19]} dxe5 {[%emt 0:00:37]} 8. dxe5 {[%emt 0:00:28]} Nd5 {[%emt 0:00:12]} 9. O-O {[%emt 0:00:32]} Nxc3 {[%emt 0:00:26]} 10. bxc3 {[%emt 0:00:05]} Qd5 {[%emt 0:00:08]} 11. Be3 {[%emt 0:12:31]} b6 {[%emt 0:03:55]} 12. c4 {[%emt 0:07:40]} Qa5 {[%emt 0:03:00]} 13. Ng5 {[%emt 0:14:22]} Bb7 {[%emt 0:08:51]} 14. Qg4 {[%emt 0:09:56]} Nb4 {[%emt 0:13:04]} 15. Qh3 {[%emt 0:11:34]} h6 {[%emt 0:05:35]} 16. Nf3 {[%emt 0:01:12]} Nxd3 {[%emt 0:06:33]} 17. cxd3 {[%emt 0:00:05]} Qc3 {[%emt 0:01:49]} 18. Rad1 {[%emt 0:13:22]} Rad8 {[%emt 0:00:43]} 19. Ne1 {[%emt 0:00:31]} e6 {[%emt 0:05:46]} 20. Rc1 {[%emt 0:04:58]} Qa3 {[%emt 0:01:25]} 21. Rc2 {[%emt 0:00:51]} Rd7 {[%emt 0:04:38]} 22. Re2 {[%emt 0:05:25]} h5 {[%emt 0:01:33]} 23. Bf2 {[%emt 0:04:14]} Rfd8 {[%emt 0:06:22]} 24. Rd2 {[%emt 0:02:45]} Ba6 {[%emt 0:08:12]} 25. Bh4 {[%emt 0:03:01]} Re8 {[%emt 0:04:44]} 26. Rdf2 {[%emt 0:02:03]} Qc3 {[%emt 0:03:44]} 27. Rf3 {[%emt 0:00:52]} Bb7 {[%emt 0:00:36]} 28. Rg3 {[%emt 0:00:43]} a6 {[%emt 0:04:08]} 29. Bg5 {[%emt 0:00:19]} b5 {[%emt 0:04:42]} 30. cxb5 {[%emt 0:00:06]} axb5 {[%emt 0:00:10]} 31. Qh4 {[%emt 0:00:42]} Ra8 {[%emt 0:00:52]} 32. Bf6 {[%emt 0:01:33]} Rxa2 {[%emt 0:04:09]} 33. Bxg7 {[%emt 0:01:26]} Kxg7 {[%emt 0:00:04]} 34. Qxh5 {[%emt 0:02:02]} Qd4+ {[%emt 0:02:59]} 35. Kh1 {[%emt 0:00:00]} Rf2 {[%emt 0:00:14]} 36. Rg1 {[%emt 0:03:01]} Qxf4 {[%emt 0:00:18]} 37. Rg4 {[%emt 0:00:48]} Qh6 {[%emt 0:02:22]} 38. Qxh6+ {[%emt 0:00:28]} Kxh6 {[%emt 0:00:03]} 39. Rb4 {[%emt 0:00:16]} Rd5 {[%emt 0:00:31]} 40. d4 {[%emt 0:00:19]} Bc6 {[%emt 0:02:54]} 41. Nf3 {[%emt 0:12:26]} Rd7 {[%emt 0:02:48]} 42. Rc1 {[%emt 0:01:53]} Bxf3 {[%emt 0:00:45]} 43. gxf3 {[%emt 0:00:05]} Rxf3 {[%emt 0:00:24]} 44. Rxb5 {[%emt 0:01:25]} Rxd4 {[%emt 0:08:55]} 45. Kg2 {[%emt 0:01:33]} Ra3 {[%emt 0:04:42]} 46. Rb2 {[%emt 0:01:53]} Rd7 {[%emt 0:02:26]} 47. Rc5 {[%emt 0:02:22]} Rad3 {[%emt 0:01:20]} 48. Rbc2 {[%emt 0:04:45]} Rd2+ {[%emt 0:02:42]} 49. Rxd2 {[%emt 0:00:06]} Rxd2+ {[%emt 0:00:05]} 50. Kg3 {[%emt 0:00:04]} Rd7 {[%emt 0:01:17]} 51. Kf4 {[%emt 0:01:42]} Kg7 {[%emt 0:00:22]} 52. Rc6 {[%emt 0:00:07]} Kf8 {[%emt 0:02:44]} 53. Kg5 {[%emt 0:02:48]} Kg7 {[%emt 0:01:18]} 54. Kf4 {[%emt 0:00:18]} Rd4+ {[%emt 0:03:13]} 55. Kf3 {[%emt 0:02:00]} Rd2 {[%emt 0:00:56]} 56. Kg3 {[%emt 0:02:15]} Rd5 {[%emt 0:00:43]} 57. Kf4 {[%emt 0:00:26]} Rd2 {[%emt 0:00:06]} 58. Kg3 {[%emt 0:00:05]} Re2 {[%emt 0:02:31]} 59. Rc5 {[%emt 0:00:15]} Kf8 {[%emt 0:00:15]} 60. h3 {[%emt 0:01:08]} Re3+ {[%emt 0:00:39]} 61. Kg4 {[%emt 0:01:43]} Ke8 {[%emt 0:00:17]} 62. h4 {[%emt 0:01:04]} Kd7 {[%emt 0:01:13]} 63. Kg5 {[%emt 0:00:23]} Rf3 {[%emt 0:00:09]} 64. Kh6 {[%emt 0:00:58]} Kc8 {[%emt 0:01:53]} 65. Kg7 {[%emt 0:00:40]} Kb7 {[%emt 0:00:11]} 66. Rc1 {[%emt 0:00:55]} Rf5 {[%emt 0:00:22]} 67. Kf8 {[%emt 0:00:29]} Rxe5 {[%emt 0:01:59]} 68. Kxf7 {[%emt 0:00:04]} Re4 {[%emt 0:00:44]} 69. Rh1 {[%emt 0:00:33]} Rg4 {[%emt 0:00:15]} 70. Kxe6 {[%emt 0:00:03]} Rf4 {[%emt 0:00:42]} 71. Ke5 {[%emt 0:00:10]} Rf5+ {[%emt 0:00:11]} 72. Kd4 {[%emt 0:01:33]} Rh5 {[%emt 0:00:46]} 73. Kd3 {[%emt 0:00:22]} Kc8 {[%emt 0:01:16]} 74. Rg1 {[%emt 0:00:10]} Rd5+ {[%emt 0:00:25]} 75. Kc4 {[%emt 0:00:13]} Rd6 {[%emt 0:00:02]} 76. Rg5 {[%emt 0:00:05]} 1/2-1/2

[Event "106th British-ch 2019"]
[Site "Torquay"]
[Date "2019.08.03"]
[Round "8.11"]
[White "Moore, Graham J"]
[Black "Ward, Chris G"]
[Result "0-1"]
[ECO "B76"]
[WhiteElo "2264"]
[BlackElo "2418"]
[Annotator "NA"]
[PlyCount "102"]
[EventDate "2019.07.27"]
[EventType "swiss"]
[EventCountry "GBR"]
[SourceTitle "playchess.com"]
[Source "ChessBase"]
[SourceQuality "1"]
[TimeControl "40/5400+30:1800+30"]

1. e4 {[%emt 0:00:00]} c5 {[%emt 0:00:00]} 2. Nf3 {[%emt 0:00:00]} d6 {[%emt 0:00:00]} 3. d4 {[%emt 0:00:00]} cxd4 {[%emt 0:00:00]} 4. Nxd4 {[%emt 0:00:00]} Nf6 {[%emt 0:00:00]} 5. Nc3 {[%emt 0:00:01]} g6 {[%emt 0:00:02]} 6. Be3 {[%emt 0:02:51]} Bg7 {[%emt 0:00:08]} 7. f3 {[%emt 0:00:06]} Nc6 {[%emt 0:04:27]} 8. Qd2 {[%emt 0:00:59]} O-O {[%emt 0:00:05]} 9. O-O-O {[%emt 0:00:08]} Nxd4 {[%emt 0:02:33]} 10. Bxd4 {[%emt 0:00:10]} Be6 {[%emt 0:00:04]} 11. Kb1 {[%emt 0:05:09]} Qc7 {[%emt 0:00:17]} 12. h4 {[%emt 0:02:01]} Rfc8 {[%emt 0:00:07]} 13. h5 {[%emt 0:04:58]} Qa5 {[%emt 0:00:05]} 14. a3 {[%emt 0:00:31]} Nxh5 {[%emt 0:01:13]} 15. Bxg7 {[%emt 0:09:10]} Kxg7 {[%emt 0:00:12]} 16. g4 {[%emt 0:01:05]} Rxc3 {[%emt 0:01:12]} 17. gxh5 {[%emt 0:31:14]} Rc5 {[%emt 0:04:50]} 18. Qd4+ {[%emt 0:00:05]} f6 {[%emt 0:01:34]} 19. hxg6 {[%emt 0:01:23]} hxg6 {[%emt 0:01:42]} 20. Bd3 {[%emt 0:07:11]} Rh5 {[%emt 0:29:01]} 21. Rhg1 {[%emt 0:02:57]} Qc5 {[%emt 0:03:26]} 22. Qa4 {[%emt 0:00:00]} Rg5 {[%emt 0:12:04]} 23. Rh1 {[%emt 0:00:00]} b5 {[%emt 0:08:47]} 24. Qa6 {[%emt 0:02:23]} Qb6 {[%emt 0:03:03]} 25. Qxb6 {[%emt 0:00:18]} axb6 {[%emt 0:00:03]} 26. f4 {[%emt 0:00:33]} Rg4 {[%emt 0:01:00]} 27. f5 {[%emt 0:06:02]} Bc4 {[%emt 0:02:15]} 28. fxg6 {[%emt 0:00:38]} Kxg6 {[%emt 0:02:35]} 29. Rh2 {[%emt 0:07:05]} Rg3 {[%emt 0:03:15]} 30. Rf2 {[%emt 0:05:26]} Rc8 {[%emt 0:04:01]} 31. Rh2 {[%emt 0:01:25]} Kf7 {[%emt 0:03:42]} 32. Rh5 {[%emt 0:02:56]} Ke6 {[%emt 0:05:56]} 33. Rh7 {[%emt 0:03:36]} Rg2 {[%emt 0:01:14]} 34. Rh5 {[%emt 0:01:18]} Rc5 {[%emt 0:02:57]} 35. Rxc5 {[%emt 0:00:45]} dxc5 {[%emt 0:00:07]} 36. Bxc4+ {[%emt 0:01:11]} bxc4 {[%emt 0:00:04]} 37. Rd8 {[%emt 0:00:14]} Rg1+ {[%emt 0:01:11]} 38. Ka2 {[%emt 0:00:00]} Re1 {[%emt 0:00:15]} 39. Rb8 {[%emt 0:00:09]} Rxe4 {[%emt 0:00:47]} 40. Rxb6+ {[%emt 0:00:05]} Kd5 {[%emt 0:01:13]} 41. a4 {[%emt 0:30:39]} c3 {[%emt 0:32:53]} 42. b3 {[%emt 0:03:42]} Re2 {[%emt 0:00:00]} 43. a5 {[%emt 0:02:34]} Rxc2+ {[%emt 0:00:00]} 44. Ka1 {[%emt 0:00:00]} Rc1+ {[%emt 0:00:00]} 45. Ka2 {[%emt 0:00:00]} c2 {[%emt 0:00:00]} 46. Kb2 {[%emt 0:00:00]} Ra1 {[%emt 0:00:00]} 47. Kxc2 {[%emt 0:00:00]} Rxa5 {[%emt 0:00:00]} 48. Rb7 {[%emt 0:00:00]} e5 {[%emt 0:00:00]} 49. Kc3 {[%emt 0:00:00]} f5 {[%emt 0:00:00]} 50. Kd3 {[%emt 0:00:00]} Ra6 {[%emt 0:00:00]} 51. Rf7 {[%emt 0:00:00]} f4 {[%emt 0:00:00] Kd4+} 0-1

[Event "106th British-ch 2019"]
[Site "Torquay"]
[Date "2019.08.03"]
[Round "8.12"]
[White "Pigott, John C"]
[Black "Toma, Katarzyna"]
[Result "0-1"]
[ECO "D76"]
[WhiteElo "2384"]
[BlackElo "2229"]
[Annotator "NA"]
[PlyCount "66"]
[EventDate "2019.07.27"]
[EventType "swiss"]
[EventCountry "GBR"]
[SourceTitle "playchess.com"]
[Source "ChessBase"]
[SourceQuality "1"]
[TimeControl "40/5400+30:1800+30"]

1. d4 {[%emt 0:00:02]} Nf6 {[%emt 0:00:00]} 2. c4 {[%emt 0:00:18]} g6 {[%emt 0:00:00]} 3. g3 {[%emt 0:00:19]} Bg7 {[%emt 0:00:14]} 4. Bg2 {[%emt 0:00:09]} d5 {[%emt 0:00:13]} 5. cxd5 {[%emt 0:00:29]} Nxd5 {[%emt 0:00:07]} 6. Nf3 {[%emt 0:00:10]} Nb6 {[%emt 0:00:24]} 7. Nc3 {[%emt 0:00:53]} O-O {[%emt 0:02:04]} 8. O-O {[%emt 0:00:43]} Nc6 {[%emt 0:00:25]} 9. e3 {[%emt 0:01:23]} Re8 {[%emt 0:00:30]} 10. h3 {[%emt 0:01:12]} e5 {[%emt 0:03:46]} 11. d5 {[%emt 0:00:40]} Nb4 {[%emt 0:06:17]} 12. e4 {[%emt 0:16:31]} c6 {[%emt 0:01:19]} 13. Qb3 {[%emt 0:03:58]} Na6 {[%emt 0:04:50]} 14. Bg5 {[%emt 0:04:18]} Qd6 {[%emt 0:14:54]} 15. Rfd1 {[%emt 0:09:08]} cxd5 {[%emt 0:07:49]} 16. exd5 {[%emt 0:01:17]} Bf5 {[%emt 0:10:03]} 17. g4 {[%emt 0:26:57]} Nc5 {[%emt 0:00:08]} 18. Qa3 {[%emt 0:00:26]} Bd7 {[%emt 0:00:15]} 19. Be3 {[%emt 0:03:52]} Rec8 {[%emt 0:07:29]} 20. Rac1 {[%emt 0:07:48]} Qf8 {[%emt 0:06:31]} 21. b3 {[%emt 0:03:27]} f5 {[%emt 0:03:15]} 22. Nb5 {[%emt 0:08:47]} Bxb5 {[%emt 0:04:54]} 23. Bxc5 {[%emt 0:00:06]} Qe8 {[%emt 0:00:29]} 24. Bxb6 {[%emt 0:06:18]} axb6 {[%emt 0:03:44]} 25. Qd6 {[%emt 0:00:07]} e4 {[%emt 0:05:11]} 26. Rxc8 {[%emt 0:00:58]} Rxc8 {[%emt 0:00:35]} 27. Ng5 {[%emt 0:00:14]} e3 {[%emt 0:01:05]} 28. fxe3 {[%emt 0:00:36]} Qxe3+ {[%emt 0:00:29]} 29. Kh1 {[%emt 0:00:05]} Re8 {[%emt 0:00:30]} 30. Ne6 {[%emt 0:02:30]} Be5 {[%emt 0:00:59]} 31. Qb4 {[%emt 0:00:05]} Qg3 {[%emt 0:02:28]} 32. Kg1 {[%emt 0:00:01]} Be2 {[%emt 0:01:03]} 33. Rc1 {[%emt 0:01:03]} Qe3+ {[%emt 0:00:17]} 0-1

[Event "106th British-ch 2019"]
[Site "Torquay"]
[Date "2019.08.03"]
[Round "8.13"]
[White "Stoyanov, Viktor"]
[Black "Bates, Richard A"]
[Result "1/2-1/2"]
[ECO "E62"]
[WhiteElo "2198"]
[BlackElo "2352"]
[Annotator "NA"]
[PlyCount "98"]
[EventDate "2019.07.27"]
[EventType "swiss"]
[EventCountry "GBR"]
[SourceTitle "playchess.com"]
[Source "ChessBase"]
[SourceQuality "1"]
[TimeControl "40/5400+30:1800+30"]

1. c4 {[%emt 0:00:00]} g6 {[%emt 0:01:52]} 2. d4 {[%emt 0:00:00]} Nf6 {[%emt 0:00:07]} 3. g3 {[%emt 0:00:00]} Bg7 {[%emt 0:00:17]} 4. Bg2 {[%emt 0:00:00]} O-O {[%emt 0:00:58]} 5. Nc3 {[%emt 0:00:03]} d6 {[%emt 0:00:21]} 6. Nf3 {[%emt 0:00:05]} Nc6 {[%emt 0:01:43]} 7. O-O {[%emt 0:00:12]} Bg4 {[%emt 0:00:16]} 8. d5 {[%emt 0:00:04]} Na5 {[%emt 0:00:38]} 9. Nd2 {[%emt 0:00:07]} c5 {[%emt 0:00:54]} 10. Qc2 {[%emt 0:00:05]} Rb8 {[%emt 0:01:29]} 11. h3 {[%emt 0:00:17]} Bd7 {[%emt 0:01:03]} 12. b3 {[%emt 0:00:14]} a6 {[%emt 0:03:51]} 13. Bb2 {[%emt 0:00:29]} b5 {[%emt 0:00:13]} 14. Rab1 {[%emt 0:04:15]} Qc7 {[%emt 0:11:09]} 15. e4 {[%emt 0:03:03]} e5 {[%emt 0:01:16]} 16. Nd1 {[%emt 0:08:57]} Nh5 {[%emt 0:06:23]} 17. Ne3 {[%emt 0:04:40]} f5 {[%emt 0:16:22]} 18. exf5 {[%emt 0:02:18]} gxf5 {[%emt 0:00:38]} 19. Qd1 {[%emt 0:01:53]} Be8 {[%emt 0:06:59]} 20. Bf3 {[%emt 0:07:27]} Qf7 {[%emt 0:03:28]} 21. Kh2 {[%emt 0:17:20]} e4 {[%emt 0:10:04]} 22. Bxh5 {[%emt 0:01:00]} Qxh5 {[%emt 0:00:05]} 23. Qxh5 {[%emt 0:00:10]} Bxh5 {[%emt 0:00:05]} 24. Bxg7 {[%emt 0:01:08]} Kxg7 {[%emt 0:00:06]} 25. g4 {[%emt 0:06:53]} fxg4 {[%emt 0:00:54]} 26. hxg4 {[%emt 0:00:09]} Bg6 {[%emt 0:00:20]} 27. Kg3 {[%emt 0:04:17]} Nb7 {[%emt 0:06:30]} 28. Rfe1 {[%emt 0:05:34]} Nd8 {[%emt 0:01:16]} 29. Nf5+ {[%emt 0:05:38]} Bxf5 {[%emt 0:00:07]} 30. gxf5 {[%emt 0:00:04]} Rxf5 {[%emt 0:00:40]} 31. Nxe4 {[%emt 0:00:18]} Nf7 {[%emt 0:00:45]} 32. f4 {[%emt 0:00:33]} Rg8 {[%emt 0:06:24]} 33. Kf3 {[%emt 0:07:30]} bxc4 {[%emt 0:11:14]} 34. Rg1+ {[%emt 0:01:23]} Kf8 {[%emt 0:02:02]} 35. Rxg8+ {[%emt 0:01:15]} Kxg8 {[%emt 0:00:06]} 36. bxc4 {[%emt 0:00:41]} Ne5+ {[%emt 0:00:14]} 37. Kg3 {[%emt 0:00:17]} Nxc4 {[%emt 0:00:32]} 38. Rc1 {[%emt 0:01:59]} Ne3 {[%emt 0:04:24]} 39. Nxd6 {[%emt 0:00:11]} Rxd5 {[%emt 0:00:28]} 40. Ne4 {[%emt 0:00:15]} Nf5+ {[%emt 0:00:59]} 41. Kg4 {[%emt 0:30:30]} h5+ {[%emt 0:30:58]} 42. Kf3 {[%emt 0:01:38]} Rd3+ {[%emt 0:01:54]} 43. Kf2 {[%emt 0:00:06]} Ra3 {[%emt 0:00:00]} 44. Rxc5 {[%emt 0:00:00]} Rxa2+ {[%emt 0:00:00]} 45. Kg1 {[%emt 0:00:00]} Nd4 {[%emt 0:00:00]} 46. Rg5+ {[%emt 0:00:00]} Kf8 {[%emt 0:00:00]} 47. Rxh5 {[%emt 0:00:00]} Ra4 {[%emt 0:00:00]} 48. Kf2 {[%emt 0:00:00]} Ne6 {[%emt 0:00:00]} 49. Re5 {[%emt 0:00:00]} Kf7 {[%emt 0:00:00]} 1/2-1/2

[Event "106th British-ch 2019"]
[Site "Torquay"]
[Date "2019.08.03"]
[Round "8.14"]
[White "Crickmore, Neil Eg"]
[Black "Ashton, Adam G"]
[Result "0-1"]
[ECO "E04"]
[WhiteElo "2187"]
[BlackElo "2323"]
[Annotator "NA"]
[PlyCount "61"]
[EventDate "2019.07.27"]
[EventType "swiss"]
[EventCountry "GBR"]
[SourceTitle "playchess.com"]
[Source "ChessBase"]
[SourceQuality "1"]
[TimeControl "40/5400+30:1800+30"]

1. d4 {[%emt 0:00:00]} d5 {[%emt 0:00:00]} 2. c4 {[%emt 0:00:16]} e6 {[%emt 0:00:00]} 3. Nf3 {[%emt 0:00:23]} Nf6 {[%emt 0:00:00]} 4. g3 {[%emt 0:00:06]} dxc4 {[%emt 0:00:04]} 5. Bg2 {[%emt 0:00:08]} a6 {[%emt 0:00:52]} 6. O-O {[%emt 0:00:46]} Nc6 {[%emt 0:00:16]} 7. Nc3 {[%emt 0:07:22]} Rb8 {[%emt 0:09:20]} 8. e4 {[%emt 0:00:38]} Be7 {[%emt 0:01:33]} 9. d5 {[%emt 0:08:03]} Nb4 {[%emt 0:15:47]} 10. Ne5 {[%emt 0:34:36]} exd5 {[%emt 0:10:09]} 11. exd5 {[%emt 0:00:29]} Bf5 {[%emt 0:03:44]} 12. Qf3 {[%emt 0:00:38]} Bd3 {[%emt 0:01:11]} 13. Nxd3 {[%emt 0:00:27]} Nxd3 {[%emt 0:00:53]} 14. b3 {[%emt 0:02:09]} Nxc1 {[%emt 0:01:28]} 15. Raxc1 {[%emt 0:00:13]} cxb3 {[%emt 0:00:08]} 16. axb3 {[%emt 0:00:05]} O-O {[%emt 0:00:32]} 17. Ne2 {[%emt 0:00:18]} Bd6 {[%emt 0:06:43]} 18. Nd4 {[%emt 0:03:29]} g6 {[%emt 0:00:30]} 19. Rfe1 {[%emt 0:02:18]} Kg7 {[%emt 0:13:02]} 20. Qc3 {[%emt 0:03:55]} Qd7 {[%emt 0:04:44]} 21. f4 {[%emt 0:00:51]} Rfe8 {[%emt 0:01:32]} 22. Nf3 {[%emt 0:00:34]} Rxe1+ {[%emt 0:02:52]} 23. Rxe1 {[%emt 0:00:15]} Re8 {[%emt 0:04:50]} 24. Rxe8 {[%emt 0:02:22]} Qxe8 {[%emt 0:00:09]} 25. Ne5 {[%emt 0:00:26]} Qb5 {[%emt 0:01:18]} 26. Nd3 {[%emt 0:01:48]} Qb6+ {[%emt 0:00:52]} 27. Kh1 {[%emt 0:08:15]} Qe3 {[%emt 0:00:16]} 28. Bf1 {[%emt 0:00:19]} h5 {[%emt 0:01:56]} 29. Qb2 {[%emt 0:02:07]} h4 {[%emt 0:01:12]} 30. Qe2 {[%emt 0:04:48]} Qd4 {[%emt 0:01:59]} 31. Bg2 {[%emt 0:02:12]} 0-1